[Event "Championnat d'Europe de Blitz"]
[Date "2024.12.09"]
[White "Gavrilescu, David"]
[Black "Dardha, Daniel"]
[WhiteElo "2549"]
[BlackElo "2639"]
[Round "8.13"]
[Result "1-0"]
[TimeControl "180+2"]

1. e4 {[%emt 00:00:01] [%clk 00:03:02]} c5 {[%emt 00:00:02] [%clk 00:03:03]} 2.
Nf3 {[%emt 00:00:01] [%clk 00:03:02]} Nc6 {[%emt 00:00:02] [%clk 00:03:03]} 3.
Bb5 {[%emt 00:00:01] [%clk 00:03:03]} e6 {[%emt 00:00:02] [%clk 00:03:04]} 4.
O-O {[%emt 00:00:02] [%clk 00:03:02]} Nge7 {[%emt 00:00:02] [%clk 00:03:04]} 5.
Re1 {[%emt 00:00:02] [%clk 00:03:03]} a6 {[%emt 00:00:01] [%clk 00:03:05]} 6.
Bf1 {[%emt 00:00:07] [%clk 00:02:57]} d5 {[%emt 00:00:08] [%clk 00:02:59]} 7.
exd5 {[%emt 00:00:02] [%clk 00:02:56]} Qxd5 {[%emt 00:00:02] [%clk 00:02:59]} 8.
Na3 {[%emt 00:00:03] [%clk 00:02:56]} Qd8 {[%emt 00:00:06] [%clk 00:02:56]} 9.
Nc4 {[%emt 00:00:07] [%clk 00:02:50]} b5 {[%emt 00:00:05] [%clk 00:02:53]} 10.
Nce5 {[%emt 00:00:05] [%clk 00:02:47]} Bb7 {[%emt 00:00:08] [%clk 00:02:47]} 11.
a4 {[%emt 00:00:43] [%clk 00:02:06]} Qb6 {[%emt 00:00:19] [%clk 00:02:30]} 12.
axb5 {[%emt 00:00:19] [%clk 00:01:49]} axb5 {[%emt 00:00:02] [%clk 00:02:31]}
13. Rxa8+ {[%emt 00:00:01] [%clk 00:01:49]} Bxa8 {[%emt 00:00:02] [%clk
00:02:31]} 14. Nxf7 {[%emt 00:00:17] [%clk 00:01:34]} Kxf7 {[%emt 00:00:02]
[%clk 00:02:31]} 15. Ng5+ {[%emt 00:00:01] [%clk 00:01:35]} Kg8 {[%emt 00:01:10]
[%clk 00:01:24]} 16. Qf3 {[%emt 00:00:06] [%clk 00:01:31]} Nf5 {[%emt 00:00:34]
[%clk 00:00:52]} 17. Rxe6 {[%emt 00:00:37] [%clk 00:00:55]} g6 {[%emt 00:00:38]
[%clk 00:00:16]} 18. Qd5 {[%emt 00:00:08] [%clk 00:00:49]} Kg7 {[%emt 00:00:01]
[%clk 00:00:17]} 19. d4 {[%emt 00:00:05] [%clk 00:00:46]} Qc7 {[%emt 00:00:13]
[%clk 00:00:06]} 20. Qa2 {[%emt 00:00:32] [%clk 00:00:16]} Bb7 {[%emt 00:00:04]
[%clk 00:00:05]} 21. Rxc6 {[%emt 00:00:03] [%clk 00:00:14]} Qxc6 {[%emt
00:00:02] [%clk 00:00:06]} 22. Qf7+ {[%clk 00:00:15]} Kh6 {[%emt 00:00:03] [%clk
00:00:05]} 23. Ne4+ {[%emt 00:00:05] [%clk 00:00:11]} Kh5 {[%emt 00:00:04] [%clk
00:00:04]} 24. Be2+ {[%clk 00:00:12]} Kh4 {[%emt 00:00:02] [%clk 00:00:03]} 25.
g3+ {[%emt 00:00:01] [%clk 00:00:13]} Kh3 {[%emt 00:00:02] [%clk 00:00:04]} 26.
Ng5# {[%emt 00:00:01] [%clk 00:00:14]} 1-0

[Site "Europe Echecs"]

[Event "Championnat d'Europe de Blitz"]
[Date "2024.12.09"]
[White "Samunenkov, Ihor"]
[Black "Baidetskyi, Valentin"]
[WhiteElo "2543"]
[BlackElo "2519"]
[Round "8.14"]
[Result "0-1"]
[TimeControl "180+2"]

1. d4 {[%emt 00:00:02] [%clk 00:03:02]} d6 {[%emt 00:00:01] [%clk 00:03:04]} 2.
e4 {[%emt 00:00:07] [%clk 00:02:56]} Nf6 {[%emt 00:00:02] [%clk 00:03:05]} 3.
Nc3 {[%emt 00:00:01] [%clk 00:02:56]} e5 {[%emt 00:00:02] [%clk 00:03:05]} 4.
Nf3 {[%emt 00:00:02] [%clk 00:02:56]} Nbd7 {[%emt 00:00:01] [%clk 00:03:06]} 5.
Bc4 {[%emt 00:00:02] [%clk 00:02:56]} Be7 {[%emt 00:00:01] [%clk 00:03:07]} 6.
O-O {[%emt 00:00:02] [%clk 00:02:55]} O-O {[%emt 00:00:02] [%clk 00:03:07]} 7.
a4 {[%emt 00:00:02] [%clk 00:02:55]} exd4 {[%emt 00:00:02] [%clk 00:03:08]} 8.
Nxd4 {[%emt 00:00:08] [%clk 00:02:48]} Ne5 {[%emt 00:00:02] [%clk 00:03:09]} 9.
Ba2 {[%emt 00:00:06] [%clk 00:02:44]} Nc6 {[%emt 00:00:01] [%clk 00:03:10]} 10.
Re1 {[%emt 00:00:19] [%clk 00:02:27]} Nb4 {[%emt 00:00:03] [%clk 00:03:09]} 11.
Bb3 {[%emt 00:00:04] [%clk 00:02:25]} c5 {[%emt 00:00:05] [%clk 00:03:06]} 12.
Nde2 {[%emt 00:00:06] [%clk 00:02:20]} Be6 {[%emt 00:00:12] [%clk 00:02:57]} 13.
Bxe6 {[%emt 00:00:15] [%clk 00:02:07]} fxe6 {[%emt 00:00:02] [%clk 00:02:57]}
14. Nf4 {[%emt 00:00:02] [%clk 00:02:07]} Qd7 {[%emt 00:00:02] [%clk 00:02:57]}
15. Nd3 {[%emt 00:00:17] [%clk 00:01:52]} d5 {[%emt 00:00:34] [%clk 00:02:25]}
16. e5 {[%emt 00:00:11] [%clk 00:01:43]} Nxd3 {[%emt 00:01:00] [%clk 00:01:27]}
17. Qxd3 {[%emt 00:00:33] [%clk 00:01:11]} Ng4 {[%emt 00:00:19] [%clk 00:01:11]}
18. f3 {[%emt 00:00:17] [%clk 00:00:56]} Nh6 {[%emt 00:00:05] [%clk 00:01:08]}
19. Bxh6 {[%emt 00:00:03] [%clk 00:00:55]} gxh6 {[%emt 00:00:01] [%clk
00:01:09]} 20. Ne4 {[%emt 00:00:02] [%clk 00:00:54]} Qe8 {[%emt 00:00:14] [%clk
00:00:58]} 21. Nd6 {[%emt 00:00:17] [%clk 00:00:39]} Qg6 {[%emt 00:00:05] [%clk
00:00:55]} 22. Qxg6+ {[%emt 00:00:11] [%clk 00:00:30]} hxg6 {[%emt 00:00:01]
[%clk 00:00:55]} 23. c4 {[%emt 00:00:01] [%clk 00:00:31]} Rad8 {[%emt 00:00:23]
[%clk 00:00:36]} 24. Nxb7 {[%emt 00:00:10] [%clk 00:00:22]} Rb8 {[%emt 00:00:06]
[%clk 00:00:31]} 25. Na5 {[%emt 00:00:02] [%clk 00:00:22]} Rxb2 {[%emt 00:00:06]
[%clk 00:00:28]} 26. Nc6 {[%emt 00:00:02] [%clk 00:00:22]} Bg5 {[%emt 00:00:24]
[%clk 00:00:06]} 27. cxd5 {[%emt 00:00:08] [%clk 00:00:15]} exd5 {[%emt
00:00:02] [%clk 00:00:07]} 28. e6 {[%emt 00:00:06] [%clk 00:00:11]} d4 {[%emt
00:00:04] [%clk 00:00:05]} 29. Rad1 {[%emt 00:00:07] [%clk 00:00:05]} Be3+
{[%emt 00:00:01] [%clk 00:00:06]} 30. Kh1 {[%emt 00:00:02] [%clk 00:00:06]} Re8
{[%emt 00:00:01] [%clk 00:00:06]} 31. e7 {[%emt 00:00:03] [%clk 00:00:05]} Rb6
{[%emt 00:00:05]} 32. Ne5 {[%clk 00:00:04]} Rxe7 {[%emt 00:00:02] [%clk
00:00:06]} 33. Nc4 {[%emt 00:00:02] [%clk 00:00:04]} Rb4 {[%clk 00:00:07]} 34.
Nxe3 {[%emt 00:00:03] [%clk 00:00:03]} Rxe3 {[%clk 00:00:08]} 35. Rxe3 {[%emt
00:00:02] [%clk 00:00:03]} dxe3 {[%emt 00:00:01] [%clk 00:00:09]} 36. a5 {[%emt
00:00:02] [%clk 00:00:03]} Rd4 {[%emt 00:00:04] [%clk 00:00:07]} 37. Re1 {[%clk
00:00:04]} c4 {[%emt 00:00:04] [%clk 00:00:05]} 38. Kg1 {[%emt 00:00:03] [%clk
00:00:03]} c3 {[%emt 00:00:01] [%clk 00:00:06]} 39. Kf1 {[%clk 00:00:04]} Rd2
{[%emt 00:00:03] [%clk 00:00:05]} 40. Rc1 {[%emt 00:00:03] [%clk 00:00:03]} c2
{[%emt 00:00:03] [%clk 00:00:04]} 41. Ke1 {[%clk 00:00:04]} Kf7 {[%clk
00:00:05]} 0-1

[Site "Europe Echecs"]

[Event "Championnat d'Europe de Blitz"]
[Date "2024.12.09"]
[White "Zlatkov, Anton"]
[Black "Ragger, Markus"]
[WhiteElo "2324"]
[BlackElo "2577"]
[Round "8.15"]
[Result "0-1"]
[TimeControl "180+2"]

1. e4 {[%clk 00:03:03]} e5 {[%emt 00:00:01] [%clk 00:03:04]} 2. Nf3 {[%clk
00:03:04]} Nc6 {[%clk 00:03:05]} 3. Bc4 {[%emt 00:00:02] [%clk 00:03:05]} Nf6
{[%clk 00:03:05]} 4. d3 {[%emt 00:00:01] [%clk 00:03:07]} Bc5 {[%clk 00:03:06]}
5. c3 {[%emt 00:00:01] [%clk 00:03:08]} d6 {[%emt 00:00:03] [%clk 00:03:05]} 6.
O-O {[%emt 00:00:04] [%clk 00:03:05]} a6 {[%emt 00:00:02] [%clk 00:03:06]} 7.
Bb3 {[%emt 00:00:02] [%clk 00:03:05]} O-O {[%emt 00:00:03] [%clk 00:03:04]} 8.
h3 {[%emt 00:00:01] [%clk 00:03:06]} h6 {[%emt 00:00:10] [%clk 00:02:56]} 9.
Nbd2 {[%emt 00:00:03] [%clk 00:03:06]} Re8 {[%emt 00:00:05] [%clk 00:02:52]} 10.
Re1 {[%emt 00:00:02] [%clk 00:03:06]} Be6 {[%emt 00:00:01] [%clk 00:02:53]} 11.
Nf1 {[%emt 00:00:19] [%clk 00:02:50]} Bxb3 {[%emt 00:00:02] [%clk 00:02:53]} 12.
axb3 {[%emt 00:00:03] [%clk 00:02:49]} a5 {[%emt 00:00:03] [%clk 00:02:52]} 13.
Ng3 {[%emt 00:00:06] [%clk 00:02:45]} d5 {[%emt 00:00:02] [%clk 00:02:52]} 14.
Qe2 {[%emt 00:00:02] [%clk 00:02:45]} Qd7 {[%emt 00:00:13] [%clk 00:02:41]} 15.
Nh2 {[%emt 00:00:14] [%clk 00:02:32]} Rad8 {[%emt 00:00:08] [%clk 00:02:35]} 16.
Qf3 {[%emt 00:00:12] [%clk 00:02:23]} dxe4 {[%emt 00:00:06] [%clk 00:02:31]} 17.
dxe4 {[%emt 00:00:01] [%clk 00:02:24]} Qe6 {[%emt 00:00:54] [%clk 00:01:39]} 18.
Nf5 {[%emt 00:00:16] [%clk 00:02:09]} Bf8 {[%emt 00:00:05] [%clk 00:01:36]} 19.
Be3 {[%emt 00:00:31] [%clk 00:01:40]} b6 {[%emt 00:00:05] [%clk 00:01:34]} 20.
Rad1 {[%emt 00:00:14] [%clk 00:01:28]} Ne7 {[%emt 00:00:02] [%clk 00:01:33]} 21.
Ng4 {[%emt 00:00:34] [%clk 00:00:57]} Nxg4 {[%emt 00:00:12] [%clk 00:01:22]} 22.
hxg4 {[%emt 00:00:18] [%clk 00:00:42]} Qxb3 {[%emt 00:00:08] [%clk 00:01:16]}
23. Rxd8 {[%emt 00:00:18] [%clk 00:00:26]} Rxd8 {[%emt 00:00:01] [%clk
00:01:16]} 24. g5 {[%clk 00:00:28]} hxg5 {[%emt 00:00:14] [%clk 00:01:04]} 25.
Bxg5 {[%emt 00:00:04] [%clk 00:00:26]} f6 {[%emt 00:00:04] [%clk 00:01:02]} 26.
Bc1 {[%emt 00:00:01] [%clk 00:00:26]} Nxf5 {[%emt 00:00:11] [%clk 00:00:54]} 27.
exf5 {[%emt 00:00:04] [%clk 00:00:24]} Qd5 {[%emt 00:00:03] [%clk 00:00:53]} 28.
Qh5 {[%emt 00:00:05] [%clk 00:00:19]} Qf7 {[%emt 00:00:21] [%clk 00:00:36]} 29.
Qg4 {[%emt 00:00:02] [%clk 00:00:19]} b5 {[%emt 00:00:06] [%clk 00:00:32]} 30.
Kh2 {[%emt 00:00:09] [%clk 00:00:12]} a4 {[%emt 00:00:01] [%clk 00:00:32]} 31.
Be3 {[%emt 00:00:04] [%clk 00:00:11]} Qb3 {[%emt 00:00:05]} 32. Re2 {[%clk
00:00:10]} Qd1 {[%emt 00:00:03] [%clk 00:00:31]} 33. Qh5 {[%emt 00:00:05] [%clk
00:00:07]} c5 {[%emt 00:00:04] [%clk 00:00:29]} 34. Kg3 {[%emt 00:00:05] [%clk
00:00:04]} b4 {[%emt 00:00:01] [%clk 00:00:29]} 35. cxb4 {[%emt 00:00:02] [%clk
00:00:05]} cxb4 {[%clk 00:00:30]} 36. Qg4 {[%clk 00:00:05]} Rc8 {[%emt 00:00:12]
[%clk 00:00:21]} 37. Rd2 {[%emt 00:00:02] [%clk 00:00:05]} Qxg4+ {[%emt
00:00:02] [%clk 00:00:21]} 38. Kxg4 {[%emt 00:00:01] [%clk 00:00:06]} b3 {[%emt
00:00:08] [%clk 00:00:15]} 39. Kf3 {[%emt 00:00:03] [%clk 00:00:05]} Rc4 {[%emt
00:00:06] [%clk 00:00:11]} 40. Rd8 {[%emt 00:00:02] [%clk 00:00:05]} Kf7 {[%emt
00:00:01] [%clk 00:00:12]} 41. Ra8 {[%emt 00:00:01] [%clk 00:00:06]} a3 {[%emt
00:00:03] [%clk 00:00:11]} 42. bxa3 {[%emt 00:00:06] [%clk 00:00:00]} b2 0-1

[Site "Europe Echecs"]

[Event "Championnat d'Europe de Blitz"]
[Date "2024.12.09"]
[White "Kazakouski, Valery"]
[Black "Papasimakopoulos, Alexandros"]
[WhiteElo "2567"]
[BlackElo "2379"]
[Round "8.16"]
[Result "0-1"]
[TimeControl "180+2"]

1. e4 {[%clk 00:03:03]} e6 {[%emt 00:00:01] [%clk 00:03:04]} 2. d4 {[%emt
00:00:01] [%clk 00:03:03]} d5 {[%clk 00:03:05]} 3. Nc3 {[%clk 00:03:04]} Bb4
{[%clk 00:03:07]} 4. e5 {[%emt 00:00:02] [%clk 00:03:04]} c5 {[%emt 00:00:01]
[%clk 00:03:08]} 5. a3 {[%clk 00:03:05]} Bxc3+ {[%clk 00:03:09]} 6. bxc3 {[%clk
00:03:06]} Nc6 {[%emt 00:00:01] [%clk 00:03:10]} 7. h4 {[%clk 00:03:07]} Nge7
{[%emt 00:00:02] [%clk 00:03:10]} 8. h5 {[%clk 00:03:08]} h6 {[%emt 00:00:01]
[%clk 00:03:11]} 9. Qg4 {[%emt 00:00:06] [%clk 00:03:04]} Nf5 {[%emt 00:00:07]
[%clk 00:03:07]} 10. Bd3 {[%emt 00:00:05] [%clk 00:03:00]} Nce7 {[%emt 00:00:01]
[%clk 00:03:08]} 11. a4 {[%emt 00:00:05] [%clk 00:02:57]} Qa5 {[%emt 00:00:01]
[%clk 00:03:09]} 12. Bd2 {[%emt 00:00:03] [%clk 00:02:56]} c4 {[%clk 00:03:11]}
13. Be2 {[%emt 00:00:02] [%clk 00:02:57]} Bd7 {[%emt 00:00:21] [%clk 00:02:51]}
14. Qh3 {[%emt 00:00:02] [%clk 00:02:58]} Nc8 {[%emt 00:00:24] [%clk 00:02:28]}
15. g4 {[%emt 00:00:03] [%clk 00:02:57]} Nfe7 {[%emt 00:00:01] [%clk 00:02:29]}
16. f4 {[%clk 00:02:58]} Bxa4 {[%emt 00:00:08] [%clk 00:02:23]} 17. f5 {[%emt
00:00:03] [%clk 00:02:57]} b5 {[%emt 00:00:16] [%clk 00:02:10]} 18. Nf3 {[%emt
00:00:09] [%clk 00:02:49]} Qc7 {[%emt 00:00:33] [%clk 00:01:39]} 19. Ra2 {[%emt
00:00:21] [%clk 00:02:30]} Nb6 {[%emt 00:00:33] [%clk 00:01:08]} 20. O-O {[%emt
00:00:18] [%clk 00:02:15]} Nd7 {[%clk 00:01:09]} 21. Nh4 {[%emt 00:00:08] [%clk
00:02:09]} Qb6 {[%emt 00:00:13] [%clk 00:00:58]} 22. g5 {[%emt 00:00:27] [%clk
00:01:44]} O-O-O {[%emt 00:00:36] [%clk 00:00:24]} 23. fxe6 {[%emt 00:00:20]
[%clk 00:01:26]} fxe6 {[%emt 00:00:02] [%clk 00:00:25]} 24. Bg4 {[%emt 00:00:05]
[%clk 00:01:22]} Nxe5 {[%emt 00:00:07] [%clk 00:00:20]} 25. Bxe6+ {[%emt
00:00:02] [%clk 00:01:22]} Kb7 {[%clk 00:00:22]} 26. Re1 {[%emt 00:00:32] [%clk
00:00:51]} N5c6 {[%emt 00:00:05] [%clk 00:00:20]} 27. Rb1 {[%emt 00:00:02] [%clk
00:00:51]} Qa5 {[%emt 00:00:15] [%clk 00:00:07]} 28. Nf3 {[%emt 00:00:17] [%clk
00:00:35]} Rdf8 {[%emt 00:00:01] [%clk 00:00:08]} 29. Kg2 {[%emt 00:00:09] [%clk
00:00:28]} Ka8 {[%emt 00:00:01] [%clk 00:00:09]} 30. Bd7 {[%emt 00:00:02] [%clk
00:00:29]} Qc7 {[%clk 00:00:10]} 31. Re1 {[%emt 00:00:03] [%clk 00:00:27]} Qd6
{[%emt 00:00:03] [%clk 00:00:10]} 32. Bg4 {[%emt 00:00:02] [%clk 00:00:27]} Qc7
{[%emt 00:00:05] [%clk 00:00:07]} 33. Ne5 {[%emt 00:00:07] [%clk 00:00:22]} hxg5
{[%emt 00:00:04] [%clk 00:00:05]} 34. Bxg5 {[%clk 00:00:23]} Nxe5 {[%emt
00:00:03] [%clk 00:00:04]} 35. Rxe5 {[%clk 00:00:24]} Ng6 {[%clk 00:00:05]} 36.
Rxd5 {[%emt 00:00:06] [%clk 00:00:20]} Nf4+ {[%clk 00:00:07]} 37. Bxf4 {[%emt
00:00:02] [%clk 00:00:20]} Qxf4 {[%emt 00:00:01] [%clk 00:00:08]} 38. Bf3 {[%emt
00:00:09] [%clk 00:00:13]} Kb8 {[%clk 00:00:09]} 39. Qg3 {[%emt 00:00:09] [%clk
00:00:05]} Qxg3+ {[%emt 00:00:01] [%clk 00:00:10]} 40. Kxg3 {[%emt 00:00:01]
[%clk 00:00:07]} Rf7 {[%clk 00:00:11]} 41. Rb2 {[%emt 00:00:03] [%clk 00:00:06]}
a6 {[%emt 00:00:01] [%clk 00:00:11]} 42. Rd6 {[%clk 00:00:07]} Ka7 {[%emt
00:00:01] [%clk 00:00:12]} 43. Rg6 {[%emt 00:00:02] [%clk 00:00:08]} Re8 {[%emt
00:00:01] [%clk 00:00:13]} 44. Kf2 {[%emt 00:00:06] [%clk 00:00:04]} Ref8 {[%clk
00:00:14]} 45. Rg3 {[%clk 00:00:05]} Kb6 {[%clk 00:00:16]} 46. Ke3 {[%emt
00:00:01] [%clk 00:00:06]} Re7+ {[%clk 00:00:17]} 47. Kd2 {[%emt 00:00:02] [%clk
00:00:07]} Rf4 {[%clk 00:00:18]} 48. Rg6+ {[%emt 00:00:01] [%clk 00:00:07]} Ka7
{[%emt 00:00:02] [%clk 00:00:19]} 49. Rg3 {[%emt 00:00:01] [%clk 00:00:08]} Ref7
{[%emt 00:00:01] [%clk 00:00:19]} 50. Ke3 {[%emt 00:00:02] [%clk 00:00:09]} R4f6
{[%clk 00:00:20]} 51. d5 {[%emt 00:00:04] [%clk 00:00:07]} Re7+ {[%emt 00:00:01]
[%clk 00:00:21]} 52. Kd4 {[%emt 00:00:02] [%clk 00:00:07]} Kb6 {[%clk 00:00:23]}
53. Rg6 {[%emt 00:00:04] [%clk 00:00:05]} Rxg6 {[%emt 00:00:03] [%clk 00:00:22]}
54. hxg6 {[%clk 00:00:07]} Re1 {[%emt 00:00:05] [%clk 00:00:18]} 55. Ra2 {[%emt
00:00:04] [%clk 00:00:05]} Rg1 {[%emt 00:00:03] [%clk 00:00:18]} 56. Be4 {[%emt
00:00:01] [%clk 00:00:06]} Rc1 {[%emt 00:00:07] [%clk 00:00:12]} 57. Bf5 {[%emt
00:00:03] [%clk 00:00:05]} Rd1+ {[%emt 00:00:03] [%clk 00:00:12]} 58. Ke5 {[%emt
00:00:01] [%clk 00:00:06]} Kc5 {[%clk 00:00:13]} 59. Be4 {[%emt 00:00:03] [%clk
00:00:05]} Re1 {[%emt 00:00:05] [%clk 00:00:10]} 60. Kf4 {[%emt 00:00:02] [%clk
00:00:05]} Kd6 {[%emt 00:00:01] [%clk 00:00:11]} 61. Rb2 {[%clk 00:00:06]} Rf1+
{[%emt 00:00:01] [%clk 00:00:12]} 62. Ke3 {[%emt 00:00:02] [%clk 00:00:06]} Ke5
{[%clk 00:00:13]} 63. Bf3 {[%emt 00:00:02] [%clk 00:00:06]} Re1+ {[%clk
00:00:14]} 64. Kd2 {[%emt 00:00:01] [%clk 00:00:07]} Rg1 {[%emt 00:00:01] [%clk
00:00:15]} 65. Ke3 {[%emt 00:00:02] [%clk 00:00:07]} Re1+ {[%emt 00:00:05] [%clk
00:00:12]} 66. Kd2 {[%clk 00:00:09]} Ra1 {[%emt 00:00:01] [%clk 00:00:13]} 67.
Ke3 {[%emt 00:00:02] [%clk 00:00:09]} Rg1 {[%emt 00:00:01] [%clk 00:00:14]} 68.
Ra2 {[%emt 00:00:07] [%clk 00:00:04]} Rxg6 {[%emt 00:00:03] [%clk 00:00:13]} 69.
Ra1 {[%emt 00:00:01] [%clk 00:00:05]} Rg3 {[%emt 00:00:04] [%clk 00:00:12]} 70.
Kf2 {[%emt 00:00:01] [%clk 00:00:06]} Rxf3+ {[%emt 00:00:02] [%clk 00:00:11]}
71. Kxf3 {[%emt 00:00:01] [%clk 00:00:07]} Kxd5 {[%emt 00:00:01] [%clk
00:00:12]} 72. Ke3 {[%emt 00:00:02] [%clk 00:00:07]} Ke5 {[%emt 00:00:03] [%clk
00:00:11]} 73. Rg1 {[%emt 00:00:05] [%clk 00:00:05]} Kf6 {[%clk 00:00:12]} 74.
Kd2 {[%emt 00:00:03] [%clk 00:00:05]} g5 {[%emt 00:00:01] [%clk 00:00:13]} 75.
Rf1+ {[%clk 00:00:06]} Ke5 {[%clk 00:00:14]} 76. Rf2 {[%emt 00:00:02] [%clk
00:00:05]} g4 {[%emt 00:00:01] [%clk 00:00:16]} 77. Ke3 {[%clk 00:00:07]} a5
{[%emt 00:00:02] [%clk 00:00:16]} 78. Rg2 {[%clk 00:00:08]} Kf5 {[%emt 00:00:03]
[%clk 00:00:16]} 79. Rf2+ {[%clk 00:00:10]} Ke5 {[%emt 00:00:01] [%clk
00:00:17]} 80. Rh2 {[%emt 00:00:01] [%clk 00:00:10]} Kd6 {[%emt 00:00:05] [%clk
00:00:14]} 81. Kd4 {[%emt 00:00:02] [%clk 00:00:10]} g3 {[%emt 00:00:02] [%clk
00:00:14]} 82. Rg2 {[%clk 00:00:12]} Kc6 {[%emt 00:00:02] [%clk 00:00:15]} 83.
Rxg3 {[%emt 00:00:07] [%clk 00:00:07]} Bxc2 {[%emt 00:00:01] [%clk 00:00:16]}
84. Rg8 {[%emt 00:00:02] [%clk 00:00:06]} a4 {[%emt 00:00:10] [%clk 00:00:08]}
85. Rf8 {[%emt 00:00:01] [%clk 00:00:07]} a3 {[%emt 00:00:03] [%clk 00:00:07]}
86. Rf6+ {[%emt 00:00:04] [%clk 00:00:05]} Kc7 {[%emt 00:00:03] [%clk 00:00:06]}
87. Rf7+ {[%emt 00:00:04] [%clk 00:00:04]} Kc6 {[%emt 00:00:01] [%clk 00:00:07]}
88. Rf6+ {[%emt 00:00:01] [%clk 00:00:05]} Kd7 {[%clk 00:00:08]} 89. Rf7+ {[%emt
00:00:01] [%clk 00:00:06]} Ke6 {[%emt 00:00:01] [%clk 00:00:09]} 90. Rf2 {[%emt
00:00:03] [%clk 00:00:05]} a2 {[%emt 00:00:02] [%clk 00:00:09]} 0-1

[Site "Europe Echecs"]

[Event "Championnat d'Europe de Blitz"]
[Date "2024.12.09"]
[White "Fridman, Daniel"]
[Black "Horvath, Dominik"]
[WhiteElo "2571"]
[BlackElo "2542"]
[Round "8.17"]
[Result "0-1"]
[TimeControl "180+2"]

1. d4 {[%emt 00:00:01] [%clk 00:03:03]} Nf6 {[%clk 00:03:03]} 2. Nf3 {[%emt
00:00:01] [%clk 00:03:04]} g6 {[%emt 00:00:01] [%clk 00:03:05]} 3. c4 {[%emt
00:00:01] [%clk 00:03:04]} Bg7 {[%clk 00:03:06]} 4. g3 {[%emt 00:00:01] [%clk
00:03:05]} c6 {[%emt 00:00:01] [%clk 00:03:07]} 5. Bg2 {[%emt 00:00:02] [%clk
00:03:05]} d5 {[%emt 00:00:01] [%clk 00:03:08]} 6. Nbd2 {[%emt 00:00:01] [%clk
00:03:06]} O-O {[%emt 00:00:02] [%clk 00:03:08]} 7. O-O {[%emt 00:00:02] [%clk
00:03:06]} a5 {[%clk 00:03:09]} 8. b3 {[%emt 00:00:02] [%clk 00:03:06]} a4
{[%clk 00:03:11]} 9. Ba3 {[%emt 00:00:01] [%clk 00:03:07]} Re8 {[%emt 00:00:05]
[%clk 00:03:08]} 10. e3 {[%emt 00:00:03] [%clk 00:03:05]} Bf5 {[%emt 00:00:02]
[%clk 00:03:07]} 11. Qe2 {[%emt 00:00:02] [%clk 00:03:05]} Nbd7 {[%emt 00:00:05]
[%clk 00:03:05]} 12. Nh4 {[%emt 00:00:03] [%clk 00:03:04]} Bg4 {[%emt 00:00:01]
[%clk 00:03:06]} 13. f3 {[%emt 00:00:03] [%clk 00:03:03]} Be6 {[%emt 00:00:01]
[%clk 00:03:07]} 14. f4 {[%emt 00:00:05] [%clk 00:03:00]} Bg4 {[%emt 00:00:42]
[%clk 00:02:27]} 15. Qd3 {[%emt 00:00:01] [%clk 00:03:01]} e6 {[%emt 00:00:03]
[%clk 00:02:27]} 16. Bd6 {[%emt 00:00:34] [%clk 00:02:29]} Bf5 {[%emt 00:00:06]
[%clk 00:02:22]} 17. Nxf5 {[%emt 00:00:02] [%clk 00:02:29]} exf5 {[%emt
00:00:01] [%clk 00:02:23]} 18. cxd5 {[%emt 00:00:05] [%clk 00:02:26]} Nxd5
{[%emt 00:00:02] [%clk 00:02:23]} 19. Nc4 {[%emt 00:00:19] [%clk 00:02:09]} N7f6
{[%emt 00:00:06] [%clk 00:02:19]} 20. Be5 {[%emt 00:00:02] [%clk 00:02:10]} Ne4
{[%emt 00:00:02] [%clk 00:02:19]} 21. Bxg7 {[%emt 00:00:15] [%clk 00:01:56]}
Kxg7 {[%emt 00:00:02] [%clk 00:02:19]} 22. a3 {[%emt 00:00:17] [%clk 00:01:41]}
axb3 {[%emt 00:00:36] [%clk 00:01:45]} 23. Rfb1 {[%emt 00:00:17] [%clk
00:01:26]} b5 {[%emt 00:00:16] [%clk 00:01:32]} 24. Ne5 {[%emt 00:00:01] [%clk
00:01:26]} Qd6 {[%clk 00:01:33]} 25. Rxb3 {[%emt 00:00:09] [%clk 00:01:20]} f6
{[%clk 00:01:34]} 26. Nf3 {[%emt 00:00:01] [%clk 00:01:20]} Ra4 {[%emt 00:00:02]
[%clk 00:01:34]} 27. Ne1 {[%emt 00:00:23] [%clk 00:00:59]} b4 {[%emt 00:00:32]
[%clk 00:01:04]} 28. Nc2 {[%emt 00:00:01] [%clk 00:01:00]} Rea8 {[%emt 00:00:01]
[%clk 00:01:05]} 29. Bxe4 {[%emt 00:00:06] [%clk 00:00:56]} fxe4 {[%emt
00:00:02] [%clk 00:01:06]} 30. Qxe4 {[%emt 00:00:01] [%clk 00:00:56]} bxa3
{[%emt 00:00:03] [%clk 00:01:05]} 31. Ra2 {[%emt 00:00:06] [%clk 00:00:52]} f5
{[%emt 00:00:06] [%clk 00:01:01]} 32. Qd3 {[%emt 00:00:01] [%clk 00:00:52]} c5
{[%emt 00:00:30] [%clk 00:00:34]} 33. Rbxa3 {[%emt 00:00:03] [%clk 00:00:51]} c4
{[%emt 00:00:19] [%clk 00:00:17]} 34. Qe2 {[%emt 00:00:13] [%clk 00:00:40]} Rxa3
{[%emt 00:00:02] [%clk 00:00:18]} 35. Rxa3 {[%clk 00:00:40]} Rxa3 {[%emt
00:00:01] [%clk 00:00:19]} 36. Nxa3 {[%clk 00:00:41]} Qxa3 {[%clk 00:00:20]} 37.
Qxc4 {[%clk 00:00:42]} Qxe3+ {[%emt 00:00:02] [%clk 00:00:20]} 38. Kg2 {[%emt
00:00:02] [%clk 00:00:42]} Qe4+ {[%emt 00:00:02] [%clk 00:00:21]} 39. Kh3 {[%emt
00:00:01] [%clk 00:00:42]} Ne3 {[%clk 00:00:22]} 40. Qc7+ {[%emt 00:00:03] [%clk
00:00:42]} Kh6 {[%clk 00:00:23]} 41. Kh4 {[%emt 00:00:02] [%clk 00:00:41]} Qf3
{[%emt 00:00:05] [%clk 00:00:20]} 0-1

[Site "Europe Echecs"]